[Event "2nd Namma Bengaluru Open-A 2025"]
[Site "Bengaluru"]
[Date "2025.04.18"]
[Round "10.14"]
[White "Sherla Prathamesh"]
[Black "Goutham Krishna H"]
[Result "0-1"]
[Annotator "RC"]
[ECO "A49"]
[WhiteElo "2157"]
[BlackElo "2449"]
[PlyCount "102"]
[EventDate "2025.04.10"]
[EventType "swiss"]
[EventCountry "IND"]
[SourceTitle "playchess.com"]
[Source "ChessBase"]
[SourceQuality "1"]
[TimeControl "5400+30"]

1. Nf3 {[%emt 0:00:02]} Nf6 {[%emt 0:02:36]} 2. b3 {[%emt 0:00:04]} g6 {[%emt 0:00:31]} 3. Bb2 {[%emt 0:00:06]} Bg7 {[%emt 0:00:05]} 4. g3 {[%emt 0:00:05]} d6 {[%emt 0:00:12]} 5. d4 {[%emt 0:01:00]} O-O {[%emt 0:00:19]} 6. Bg2 {[%emt 0:00:04]} b5 {[%emt 0:00:25]} 7. O-O {[%emt 0:20:05]} Bb7 {[%emt 0:00:07]} 8. a4 {[%emt 0:01:52]} b4 {[%emt 0:00:51]} 9. a5 {[%emt 0:03:21]} Na6 {[%emt 0:01:44]} 10. Nbd2 {[%emt 0:07:26]} c5 {[%emt 0:01:40]} 11. Nc4 {[%emt 0:05:51]} Qc7 {[%emt 0:09:03]} 12. Ne1 {[%emt 0:09:35]} cxd4 {[%emt 0:03:37]} 13. Bxb7 {[%emt 0:01:54]} Qxb7 {[%emt 0:00:02]} 14. Bxd4 {[%emt 0:00:27]} Rfd8 {[%emt 0:07:24]} 15. f3 {[%emt 0:02:58]} Rac8 {[%emt 0:05:52]} 16. Nd3 {[%emt 0:02:50]} d5 {[%emt 0:06:45]} 17. Ncb2 {[%emt 0:06:16]} Bh6 {[%emt 0:08:27]} 18. Ra4 {[%emt 0:02:14]} Ne8 {[%emt 0:01:34]} 19. Qb1 {[%emt 0:08:00]} Nd6 {[%emt 0:01:27]} 20. Nd1 {[%emt 0:02:07]} Rd7 {[%emt 0:08:41]} 21. Be3 {[%emt 0:04:14]} Bxe3+ {[%emt 0:02:25]} 22. Nxe3 {[%emt 0:00:02]} d4 {[%emt 0:06:00]} 23. Nc4 {[%emt 0:00:58]} Nxc4 {[%emt 0:04:35]} 24. bxc4 {[%emt 0:00:01]} Qc6 {[%emt 0:00:38]} 25. Qa2 {[%emt 0:02:52]} Qe6 {[%emt 0:04:15]} 26. Nxb4 {[%emt 0:03:28]} Nxb4 {[%emt 0:07:00]} 27. Rxb4 {[%emt 0:00:10]} Rdc7 {[%emt 0:01:09]} 28. Qb3 {[%emt 0:05:12]} Qxe2 {[%emt 0:02:47]} 29. Qd3 {[%emt 0:00:14]} Qe5 {[%emt 0:00:01]} 30. Rfb1 {[%emt 0:01:49]} Rc6 {[%emt 0:02:34]} 31. f4 {[%emt 0:03:25]} Qd6 {[%emt 0:01:04]} 32. Ra4 {[%emt 0:01:44]} e5 {[%emt 0:00:22]} 33. f5 {[%emt 0:02:59]} Kg7 {[%emt 0:02:06]} 34. Rf1 {[%emt 0:00:28]} f6 {[%emt 0:02:15]} 35. Rb1 {[%emt 0:00:40]} R8c7 {[%emt 0:00:30]} 36. g4 {[%emt 0:01:12]} Rc5 {[%emt 0:02:10]} 37. Qe4 {[%emt 0:01:56]} Qc6 {[%emt 0:00:58]} 38. Qxc6 {[%emt 0:00:16]} R5xc6 {[%emt 0:00:01]} 39. Rbb4 {[%emt 0:01:10]} gxf5 {[%emt 0:00:08]} 40. gxf5 {[%emt 0:00:01]} Kh6 {[%emt 0:00:13]} 41. h4 {[%emt 0:01:00]} Kh5 {[%emt 0:00:15]} 42. a6 {[%emt 0:00:15]} Kxh4 {[%emt 0:00:18]} 43. Rb7 {[%emt 0:00:12]} Kg5 {[%emt 0:00:10]} 44. Rab4 {[%emt 0:00:10]} Kxf5 {[%emt 0:00:17]} 45. Rxc7 {[%emt 0:00:32]} Rxc7 {[%emt 0:00:21]} 46. Rb7 {[%emt 0:00:01]} Rxc4 {[%emt 0:00:11]} 47. Rxa7 {[%emt 0:00:07]} Rxc2 {[%emt 0:00:08]} 48. Rxh7 {[%emt 0:00:04]} Ra2 {[%emt 0:00:08]} 49. a7 {[%emt 0:00:05]} d3 {[%emt 0:00:22]} 50. Kf1 {[%emt 0:00:05]} Ra1+ {[%emt 0:00:05]} 51. Kf2 {[%emt 0:00:07]} d2 {[%emt 0:00:13]} 0-1

[Event "2nd Namma Bengaluru Open-A 2025"]
[Site "Bengaluru"]
[Date "2025.04.18"]
[Round "10.15"]
[White "Nguyen, Quoc Hy"]
[Black "Arnav Maheshwari"]
[Result "1/2-1/2"]
[Annotator "RC"]
[ECO "E32"]
[WhiteElo "2404"]
[BlackElo "2305"]
[PlyCount "48"]
[EventDate "2025.04.10"]
[EventType "swiss"]
[EventCountry "IND"]
[SourceTitle "playchess.com"]
[Source "ChessBase"]
[SourceQuality "1"]
[TimeControl "5400+30"]

1. d4 {[%emt 0:00:02]} Nf6 {[%emt 0:05:41]} 2. c4 {[%emt 0:00:15]} e6 {[%emt 0:00:08]} 3. Nc3 {[%emt 0:00:06]} Bb4 {[%emt 0:00:07]} 4. Qc2 {[%emt 0:00:09]} d6 {[%emt 0:00:17]} 5. e4 {[%emt 0:00:16]} c5 {[%emt 0:01:04]} 6. d5 {[%emt 0:01:43]} e5 {[%emt 0:00:27]} 7. Bd3 {[%emt 0:00:19]} O-O {[%emt 0:02:36]} 8. Nge2 {[%emt 0:00:06]} Nh5 {[%emt 0:07:15]} 9. h3 {[%emt 0:01:07]} Qh4 {[%emt 0:06:02]} 10. g3 {[%emt 0:01:53]} Qe7 {[%emt 0:04:34]} 11. g4 {[%emt 0:01:49]} Nf4 {[%emt 0:05:08]} 12. Nxf4 {[%emt 0:03:30]} exf4 {[%emt 0:00:10]} 13. Bxf4 {[%emt 0:00:07]} f5 {[%emt 0:04:30]} 14. gxf5 {[%emt 0:00:20]} Bxf5 {[%emt 0:05:03]} 15. Bg3 {[%emt 0:00:14]} Bxc3+ {[%emt 0:15:15]} 16. bxc3 {[%emt 0:00:00]} Nd7 {[%emt 0:00:00]} 17. O-O-O {[%emt 0:00:08]} Bg6 {[%emt 0:00:02]} 18. h4 {[%emt 0:08:08]} Ne5 {[%emt 0:03:05]} 19. Rde1 {[%emt 0:05:38]} Rae8 {[%emt 0:03:18]} 20. Re3 {[%emt 0:00:07]} Ng4 {[%emt 0:06:52]} 21. Re2 {[%emt 0:00:56]} Ne5 {[%emt 0:02:29]} 22. Re3 {[%emt 0:00:47]} Ng4 {[%emt 0:00:07]} 23. Re2 {[%emt 0:00:05]} Ne5 {[%emt 0:00:09]} 24. Re3 {[%emt 1:14:45]} Ng4 {[%emt 0:28:11]} 1/2-1/2

[Event "2nd Namma Bengaluru Open-A 2025"]
[Site "Bengaluru"]
[Date "2025.04.18"]
[Round "10.16"]
[White "Laxman, R.R."]
[Black "Deepan Chakkravarthy J."]
[Result "1/2-1/2"]
[Annotator "RC"]
[ECO "A30"]
[WhiteElo "2291"]
[BlackElo "2394"]
[PlyCount "77"]
[EventDate "2025.04.10"]
[EventType "swiss"]
[EventCountry "IND"]
[SourceTitle "playchess.com"]
[Source "ChessBase"]
[SourceQuality "1"]
[TimeControl "5400+30"]

1. Nf3 {[%emt 0:01:32]} c5 {[%emt 0:00:34]} 2. e3 {[%emt 0:00:42]} Nf6 {[%emt 0:00:19]} 3. b3 {[%emt 0:00:47]} g6 {[%emt 0:00:39]} 4. Bb2 {[%emt 0:00:05]} Bg7 {[%emt 0:00:05]} 5. c4 {[%emt 0:00:09]} O-O {[%emt 0:00:42]} 6. Be2 {[%emt 0:00:04]} Nc6 {[%emt 0:00:33]} 7. O-O {[%emt 0:00:07]} b6 {[%emt 0:08:01]} 8. d4 {[%emt 0:00:52]} cxd4 {[%emt 0:00:06]} 9. Nxd4 {[%emt 0:00:03]} Nxd4 {[%emt 0:01:10]} 10. Bxd4 {[%emt 0:01:34]} Bb7 {[%emt 0:00:17]} 11. Nd2 {[%emt 0:00:17]} Rc8 {[%emt 0:01:25]} 12. Bf3 {[%emt 0:01:16]} Qc7 {[%emt 0:06:29]} 13. Bxb7 {[%emt 0:01:54]} Qxb7 {[%emt 0:00:02]} 14. Qf3 {[%emt 0:00:16]} Qxf3 {[%emt 0:00:24]} 15. gxf3 {[%emt 0:00:21]} d5 {[%emt 0:13:27]} 16. Rac1 {[%emt 0:01:27]} dxc4 {[%emt 0:04:17]} 17. Nxc4 {[%emt 0:00:54]} Nd5 {[%emt 0:00:10]} 18. Bxg7 {[%emt 0:00:47]} Kxg7 {[%emt 0:00:02]} 19. Rfd1 {[%emt 0:00:09]} Rfd8 {[%emt 0:00:40]} 20. Ne5 {[%emt 0:02:41]} Rxc1 {[%emt 0:03:46]} 21. Rxc1 {[%emt 0:00:01]} f6 {[%emt 0:00:15]} 22. Nc4 {[%emt 0:04:24]} Kf7 {[%emt 0:00:47]} 23. f4 {[%emt 0:00:58]} Rd7 {[%emt 0:04:27]} 24. Kg2 {[%emt 0:00:37]} Rc7 {[%emt 0:02:23]} 25. a4 {[%emt 0:00:58]} Rc5 {[%emt 0:06:25]} 26. Kf3 {[%emt 0:02:13]} h6 {[%emt 0:01:59]} 27. a5 {[%emt 0:02:55]} Ke6 {[%emt 0:04:04]} 28. e4 {[%emt 0:01:04]} Nb4 {[%emt 0:00:47]} 29. axb6 {[%emt 0:00:05]} axb6 {[%emt 0:00:01]} 30. Rg1 {[%emt 0:00:48]} b5 {[%emt 0:01:31]} 31. Ne3 {[%emt 0:00:02]} Kf7 {[%emt 0:00:53]} 32. f5 {[%emt 0:01:37]} g5 {[%emt 0:00:04]} 33. h4 {[%emt 0:03:51]} Rc3 {[%emt 0:00:32]} 34. hxg5 {[%emt 0:00:03]} hxg5 {[%emt 0:00:04]} 35. e5 {[%emt 0:00:25]} fxe5 {[%emt 0:07:11]} 36. Rxg5 {[%emt 0:00:07]} Nd5 {[%emt 0:09:28]} 37. Ke4 {[%emt 0:00:34]} Nxe3 {[%emt 0:01:06]} 38. fxe3 {[%emt 0:00:02]} Rxb3 {[%emt 0:00:09]} 39. Rg6 {[%emt 0:00:12]} 1/2-1/2

[Event "2nd Namma Bengaluru Open-A 2025"]
[Site "Bengaluru"]
[Date "2025.04.18"]
[Round "10.17"]
[White "Varun, Vij"]
[Black "Viani Antonio Dcunha"]
[Result "1/2-1/2"]
[Annotator "RC"]
[ECO "B27"]
[WhiteElo "1978"]
[BlackElo "2378"]
[PlyCount "70"]
[EventDate "2025.04.10"]
[EventType "swiss"]
[EventCountry "IND"]
[SourceTitle "playchess.com"]
[Source "ChessBase"]
[SourceQuality "1"]
[TimeControl "5400+30"]

1. e4 {[%emt 0:00:13]} c5 {[%emt 0:00:13]} 2. Nf3 {[%emt 0:00:38]} g6 {[%emt 0:00:09]} 3. d4 {[%emt 0:03:49]} cxd4 {[%emt 0:00:43]} 4. Qxd4 {[%emt 0:01:14]} Nf6 {[%emt 0:00:14]} 5. Nc3 {[%emt 0:00:06]} Nc6 {[%emt 0:01:44]} 6. Qa4 {[%emt 0:00:06]} Bg7 {[%emt 0:09:53]} 7. e5 {[%emt 0:03:06]} Ng8 {[%emt 0:00:13]} 8. Bf4 {[%emt 0:00:39]} f6 {[%emt 0:01:18]} 9. exf6 {[%emt 0:08:05]} Nxf6 {[%emt 0:00:07]} 10. Bc4 {[%emt 0:08:24]} d5 {[%emt 0:01:52]} 11. O-O-O {[%emt 0:01:48]} e6 {[%emt 0:01:23]} 12. Qa3 {[%emt 0:09:14]} Bf8 {[%emt 0:05:50]} 13. Qa4 {[%emt 0:06:54]} Bd7 {[%emt 0:01:03]} 14. Bb5 {[%emt 0:08:00]} Bg7 {[%emt 0:11:32]} 15. Qa3 {[%emt 0:02:13]} Bf8 {[%emt 0:04:05]} 16. Qa4 {[%emt 0:00:05]} Bc5 {[%emt 0:02:18]} 17. Bg5 {[%emt 0:05:54]} h6 {[%emt 0:03:53]} 18. Qh4 {[%emt 0:02:10]} Kf7 {[%emt 0:01:07]} 19. Bxf6 {[%emt 0:06:21]} Qxf6 {[%emt 0:00:10]} 20. Qxf6+ {[%emt 0:00:08]} Kxf6 {[%emt 0:00:05]} 21. Nxd5+ {[%emt 0:00:10]} exd5 {[%emt 0:04:58]} 22. Rxd5 {[%emt 0:00:03]} Bg4 {[%emt 0:01:01]} 23. Rxc5 {[%emt 0:00:57]} Bxf3 {[%emt 0:00:11]} 24. gxf3 {[%emt 0:00:05]} Nd4 {[%emt 0:00:12]} 25. Bd3 {[%emt 0:05:25]} b6 {[%emt 0:04:30]} 26. Rc7 {[%emt 0:02:12]} Rhc8 {[%emt 0:00:18]} 27. Rxc8 {[%emt 0:04:37]} Rxc8 {[%emt 0:00:06]} 28. Be4 {[%emt 0:00:10]} Ne2+ {[%emt 0:02:47]} 29. Kd2 {[%emt 0:03:12]} Nf4 {[%emt 0:00:06]} 30. Rg1 {[%emt 0:00:59]} g5 {[%emt 0:04:29]} 31. Ke3 {[%emt 0:05:39]} Ke5 {[%emt 0:02:40]} 32. Rd1 {[%emt 0:02:24]} Ng2+ {[%emt 0:00:19]} 33. Ke2 {[%emt 0:00:39]} Nf4+ {[%emt 0:00:06]} 34. Ke3 {[%emt 0:06:01]} Ng2+ {[%emt 0:00:05]} 35. Ke2 {[%emt 0:01:18]} Nf4+ {[%emt 0:38:20]} 1/2-1/2

[Event "2nd Namma Bengaluru Open-A 2025"]
[Site "Bengaluru"]
[Date "2025.04.18"]
[Round "10.18"]
[White "Vignesh B"]
[Black "Schekachikhin, Maksim"]
[Result "1-0"]
[Annotator "RC"]
[ECO "B52"]
[WhiteElo "2191"]
[BlackElo "2370"]
[PlyCount "125"]
[EventDate "2025.04.10"]
[EventType "swiss"]
[EventCountry "IND"]
[SourceTitle "playchess.com"]
[Source "ChessBase"]
[SourceQuality "1"]
[TimeControl "5400+30"]

1. e4 {[%emt 0:00:09]} c5 {[%emt 0:02:22]} 2. Nf3 {[%emt 0:00:17]} Nc6 {[%emt 0:00:08]} 3. Bb5 {[%emt 0:00:46]} d6 {[%emt 0:00:30]} 4. a4 {[%emt 0:01:12]} Bd7 {[%emt 0:00:41]} 5. O-O {[%emt 0:00:22]} Nf6 {[%emt 0:01:22]} 6. Re1 {[%emt 0:00:06]} e6 {[%emt 0:01:26]} 7. c3 {[%emt 0:01:07]} a6 {[%emt 0:13:17]} 8. Bf1 {[%emt 0:00:24]} Rc8 {[%emt 0:05:15]} 9. Na3 {[%emt 0:14:30]} Be7 {[%emt 0:03:14]} 10. Nc4 {[%emt 0:13:34]} b5 {[%emt 0:06:59]} 11. axb5 {[%emt 0:28:26]} axb5 {[%emt 0:00:12]} 12. Na3 {[%emt 0:00:10]} b4 {[%emt 0:02:16]} 13. Nc4 {[%emt 0:00:22]} O-O {[%emt 0:03:48]} 14. d3 {[%emt 0:04:05]} Qc7 {[%emt 0:14:35]} 15. Bg5 {[%emt 0:01:02]} h6 {[%emt 0:02:59]} 16. Bh4 {[%emt 0:00:31]} Ra8 {[%emt 0:04:13]} 17. Qc2 {[%emt 0:08:35]} Rfc8 {[%emt 0:06:53]} 18. h3 {[%emt 0:00:36]} Be8 {[%emt 0:03:48]} 19. Bg3 {[%emt 0:00:59]} Qd8 {[%emt 0:03:04]} 20. Red1 {[%emt 0:09:56]} d5 {[%emt 0:05:10]} 21. exd5 {[%emt 0:03:47]} Nxd5 {[%emt 0:00:14]} 22. Rxa8 {[%emt 0:01:45]} Rxa8 {[%emt 0:00:06]} 23. Re1 {[%emt 0:06:35]} bxc3 {[%emt 0:02:54]} 24. bxc3 {[%emt 0:00:02]} Bf6 {[%emt 0:00:18]} 25. Nfe5 {[%emt 0:00:28]} Nxe5 {[%emt 0:00:11]} 26. Bxe5 {[%emt 0:01:11]} Bxe5 {[%emt 0:00:23]} 27. Rxe5 {[%emt 0:00:29]} Ba4 {[%emt 0:04:33]} 28. Qb2 {[%emt 0:01:18]} Qc7 {[%emt 0:05:52]} 29. Re1 {[%emt 0:00:40]} Rb8 {[%emt 0:03:36]} 30. Qa3 {[%emt 0:00:12]} Be8 {[%emt 0:00:33]} 31. Ra1 {[%emt 0:01:02]} Nb6 {[%emt 0:01:39]} 32. Nxb6 {[%emt 0:00:43]} Qxb6 {[%emt 0:00:05]} 33. Qa5 {[%emt 0:00:27]} Kf8 {[%emt 0:00:54]} 34. Qxb6 {[%emt 0:00:26]} Rxb6 {[%emt 0:00:05]} 35. Ra5 {[%emt 0:00:04]} Rc6 {[%emt 0:01:27]} 36. f4 {[%emt 0:00:40]} g5 {[%emt 0:00:58]} 37. g3 {[%emt 0:00:57]} Ke7 {[%emt 0:00:16]} 38. Bg2 {[%emt 0:00:37]} Rc7 {[%emt 0:00:08]} 39. Kf2 {[%emt 0:00:05]} f6 {[%emt 0:01:43]} 40. c4 {[%emt 0:00:20]} Kd6 {[%emt 0:01:44]} 41. Ke3 {[%emt 0:00:20]} Bg6 {[%emt 0:00:29]} 42. Ra6+ {[%emt 0:01:15]} Ke7 {[%emt 0:00:07]} 43. Be4 {[%emt 0:00:23]} Bxe4 {[%emt 0:00:47]} 44. Kxe4 {[%emt 0:00:06]} gxf4 {[%emt 0:00:23]} 45. gxf4 {[%emt 0:00:14]} Rc8 {[%emt 0:00:47]} 46. h4 {[%emt 0:01:36]} h5 {[%emt 0:00:25]} 47. f5 {[%emt 0:00:23]} exf5+ {[%emt 0:00:17]} 48. Kxf5 {[%emt 0:00:02]} Rg8 {[%emt 0:00:15]} 49. Ra7+ {[%emt 0:00:51]} Kd6 {[%emt 0:00:11]} 50. Ra6+ {[%emt 0:00:31]} Ke7 {[%emt 0:00:04]} 51. Re6+ {[%emt 0:00:35]} Kd7 {[%emt 0:00:12]} 52. Kxf6 {[%emt 0:00:41]} Rg3 {[%emt 0:00:50]} 53. Re5 {[%emt 0:00:06]} Kc6 {[%emt 0:01:48]} 54. Rd5 {[%emt 0:00:33]} Kb6 {[%emt 0:00:07]} 55. Ke6 {[%emt 0:00:51]} Kc6 {[%emt 0:00:15]} 56. Kf7 {[%emt 0:00:22]} Rh3 {[%emt 0:00:33]} 57. Rxh5 {[%emt 0:00:19]} Rxd3 {[%emt 0:00:03]} 58. Rh6+ {[%emt 0:00:02]} Kc7 {[%emt 0:00:13]} 59. h5 {[%emt 0:00:06]} Rd4 {[%emt 0:00:13]} 60. Rg6 {[%emt 0:00:28]} Rxc4 {[%emt 0:00:48]} 61. h6 {[%emt 0:00:01]} Rh4 {[%emt 0:00:10]} 62. Kg7 {[%emt 0:00:01]} c4 {[%emt 0:00:06]} 63. h7 {[%emt 0:00:02]} 1-0

[Event "2nd Namma Bengaluru Open-A 2025"]
[Site "Bengaluru"]
[Date "2025.04.18"]
[Round "10.19"]
[White "Nguyen Van Huy"]
[Black "Podolchenko, Evgeniy"]
[Result "1/2-1/2"]
[Annotator "RC"]
[ECO "E15"]
[WhiteElo "2363"]
[BlackElo "2307"]
[PlyCount "76"]
[EventDate "2025.04.10"]
[EventType "swiss"]
[EventCountry "IND"]
[SourceTitle "playchess.com"]
[Source "ChessBase"]
[SourceQuality "1"]
[TimeControl "5400+30"]

1. d4 {[%emt 0:00:04]} Nf6 {[%emt 0:02:42]} 2. Nf3 {[%emt 0:01:06]} e6 {[%emt 0:00:08]} 3. c4 {[%emt 0:00:46]} b6 {[%emt 0:00:05]} 4. g3 {[%emt 0:00:44]} Ba6 {[%emt 0:00:07]} 5. Qa4 {[%emt 0:00:48]} Bb7 {[%emt 0:00:15]} 6. Bg2 {[%emt 0:00:44]} c5 {[%emt 0:00:06]} 7. dxc5 {[%emt 0:00:32]} bxc5 {[%emt 0:00:04]} 8. O-O {[%emt 0:01:29]} Be7 {[%emt 0:00:07]} 9. Nc3 {[%emt 0:00:32]} O-O {[%emt 0:00:10]} 10. Bf4 {[%emt 0:00:44]} Qb6 {[%emt 0:00:36]} 11. Rfd1 {[%emt 0:01:12]} d6 {[%emt 0:00:20]} 12. Rd2 {[%emt 0:01:23]} Ne4 {[%emt 0:01:14]} 13. Nxe4 {[%emt 0:02:32]} Bxe4 {[%emt 0:04:01]} 14. g4 {[%emt 0:18:00]} d5 {[%emt 0:16:42]} 15. e3 {[%emt 0:07:00]} Nc6 {[%emt 0:12:16]} 16. Rad1 {[%emt 0:08:04]} Bf6 {[%emt 0:20:39]} 17. cxd5 {[%emt 0:24:49]} exd5 {[%emt 0:03:10]} 18. Ne1 {[%emt 0:00:23]} Bxg2 {[%emt 0:00:50]} 19. Kxg2 {[%emt 0:00:20]} d4 {[%emt 0:01:07]} 20. Nf3 {[%emt 0:00:43]} Rfe8 {[%emt 0:01:48]} 21. Rc1 {[%emt 0:04:50]} Rad8 {[%emt 0:09:57]} 22. Qc4 {[%emt 0:02:24]} dxe3 {[%emt 0:10:44]} 23. Rxd8 {[%emt 0:01:09]} Nxd8 {[%emt 0:00:16]} 24. Bxe3 {[%emt 0:00:41]} Ne6 {[%emt 0:00:45]} 25. Bxc5 {[%emt 0:09:18]} Nxc5 {[%emt 0:14:51]} 26. Qxc5 {[%emt 0:00:25]} Qxb2 {[%emt 0:00:00]} 27. Rc2 {[%emt 0:00:53]} Qb7 {[%emt 0:00:00]} 28. h3 {[%emt 0:00:23]} Bd8 {[%emt 0:00:00]} 29. Qc4 {[%emt 0:02:37]} Bb6 {[%emt 0:00:00]} 30. Re2 {[%emt 0:00:06]} Rxe2 {[%emt 0:00:00]} 31. Qxe2 {[%emt 0:00:04]} Qc6 {[%emt 0:00:00]} 32. Qd3 {[%emt 0:01:47]} g6 {[%emt 0:00:00]} 33. Qe2 {[%emt 0:00:28]} Kg7 {[%emt 0:00:00]} 34. h4 {[%emt 0:01:05]} h6 {[%emt 0:00:00]} 35. Qe5+ {[%emt 0:00:56]} Kg8 {[%emt 0:00:00]} 36. Qe2 {[%emt 0:02:12]} Kg7 {[%emt 0:00:00]} 37. Qe5+ {[%emt 0:02:54]} Kg8 {[%emt 0:00:00]} 38. Qe2 {[%emt 0:00:31]} Kg7 {[%emt 0:00:00]} 1/2-1/2

[Event "2nd Namma Bengaluru Open-A 2025"]
[Site "Bengaluru"]
[Date "2025.04.18"]
[Round "10.20"]
[White "Ahaz E U"]
[Black "Manish Anto Cristiano F"]
[Result "0-1"]
[Annotator "RC"]
[ECO "E10"]
[WhiteElo "2190"]
[BlackElo "2361"]
[PlyCount "74"]
[EventDate "2025.04.10"]
[EventType "swiss"]
[EventCountry "IND"]
[SourceTitle "playchess.com"]
[Source "ChessBase"]
[SourceQuality "1"]
[TimeControl "5400+30"]

1. d4 {[%emt 1:31:00]} Nf6 {[%emt 1:31:00]} 2. Nf3 {[%emt 0:00:00]} e6 {[%emt 0:00:00]} 3. c4 {[%emt 0:00:00]} a6 {[%emt 0:00:00]} 4. g3 {[%emt 0:01:30]} b5 {[%emt 0:01:30]} 5. b3 {[%emt 0:00:00]} Bb7 {[%emt 0:00:30]} 6. Bg2 {[%emt 0:00:00]} c5 {[%emt 0:00:00]} 7. e3 {[%emt 0:00:00]} d5 {[%emt 0:00:00]} 8. cxd5 {[%emt 0:00:00]} Qxd5 {[%emt 0:00:00]} 9. Nc3 {[%emt 0:00:00]} Qd8 {[%emt 0:00:00]} 10. O-O {[%emt 0:00:00]} Nbd7 {[%emt 0:00:00]} 11. Bb2 {[%emt 0:00:00]} Rc8 {[%emt 0:00:00]} 12. Rc1 {[%emt 0:00:00]} Be7 {[%emt 0:00:00]} 13. Qe2 {[%emt 0:00:00]} O-O {[%emt 0:00:00]} 14. Rfd1 {[%emt 0:00:00]} Qa5 {[%emt 0:00:00]} 15. dxc5 {[%emt 0:00:00]} Nxc5 {[%emt 0:05:00]} 16. Ne5 {[%emt 0:00:00]} Qc7 {[%emt 0:00:00]} 17. Bxb7 {[%emt 0:00:00]} Qxb7 {[%emt 0:00:00]} 18. Qf3 {[%emt 0:00:00]} Qxf3 {[%emt 0:00:00]} 19. Nxf3 {[%emt 0:00:00]} Rfd8 {[%emt 0:00:00]} 20. Ne2 {[%emt 0:00:00]} Nd5 {[%emt 0:02:30]} 21. Ba3 {[%emt 0:00:00]} b4 {[%emt 0:00:00]} 22. Bb2 {[%emt 0:00:00]} Ne4 {[%emt 0:00:00]} 23. Nfd4 {[%emt 0:00:16]} Ndc3 {[%emt 0:00:00]} 24. Bxc3 {[%emt 0:05:17]} bxc3 {[%emt 0:00:00]} 25. f3 {[%emt 0:01:49]} c2 {[%emt 0:00:00]} 26. Rf1 {[%emt 0:00:49]} Nd2 {[%emt 0:00:00]} 27. Rf2 {[%emt 0:00:13]} e5 {[%emt 0:00:00]} 28. Nxc2 {[%emt 0:00:42]} Bc5 {[%emt 0:00:00]} 29. Kg2 {[%emt 0:01:47]} Bb6 {[%emt 0:00:00]} 30. Nb4 {[%emt 0:01:11]} Bc5 {[%emt 0:00:00]} 31. Nc2 {[%emt 0:00:50]} Kf8 {[%emt 0:00:01]} 32. Nc3 {[%emt 0:00:19]} Bb6 {[%emt 0:00:27]} 33. Rd1 {[%emt 0:00:24]} Rxc3 {[%emt 0:04:48]} 34. Rfxd2 {[%emt 0:00:17]} Rxc2 {[%emt 0:00:07]} 35. Rxc2 {[%emt 0:00:52]} Rxd1 {[%emt 0:00:06]} 36. e4 {[%emt 0:00:42]} Ke7 {[%emt 0:00:18]} 37. h4 {[%emt 0:00:16]} Be3 {[%emt 0:00:14]} 0-1

[Event "2nd Namma Bengaluru Open-A 2025"]
[Site "Bengaluru"]
[Date "2025.04.18"]
[Round "10.21"]
[White "Shahil Dey"]
[Black "Setumadhav Yellumahanthi"]
[Result "1-0"]
[Annotator "RC"]
[ECO "D05"]
[WhiteElo "2360"]
[BlackElo "2300"]
[PlyCount "91"]
[EventDate "2025.04.10"]
[EventType "swiss"]
[EventCountry "IND"]
[SourceTitle "playchess.com"]
[Source "ChessBase"]
[SourceQuality "1"]
[TimeControl "5400+30"]

1. Nf3 {[%emt 0:00:03]} d5 {[%emt 0:00:17]} 2. b3 {[%emt 0:00:46]} Nf6 {[%emt 0:00:08]} 3. Bb2 {[%emt 0:00:05]} e6 {[%emt 0:00:08]} 4. e3 {[%emt 0:01:06]} c5 {[%emt 0:00:05]} 5. d4 {[%emt 0:00:34]} Nc6 {[%emt 0:01:03]} 6. Bd3 {[%emt 0:00:59]} Bd6 {[%emt 0:02:37]} 7. Nbd2 {[%emt 0:01:56]} O-O {[%emt 0:01:05]} 8. dxc5 {[%emt 0:00:09]} Bxc5 {[%emt 0:01:43]} 9. a3 {[%emt 0:00:04]} a5 {[%emt 0:07:04]} 10. c4 {[%emt 0:03:06]} d4 {[%emt 0:05:26]} 11. exd4 {[%emt 0:00:45]} Nxd4 {[%emt 0:00:58]} 12. O-O {[%emt 0:07:10]} Re8 {[%emt 0:08:53]} 13. Re1 {[%emt 0:14:25]} Nxf3+ {[%emt 0:32:55]} 14. Qxf3 {[%emt 0:02:47]} Bd4 {[%emt 0:04:57]} 15. Bxd4 {[%emt 0:00:45]} Qxd4 {[%emt 0:00:07]} 16. Ne4 {[%emt 0:01:16]} Nxe4 {[%emt 0:04:20]} 17. Bxe4 {[%emt 0:00:26]} a4 {[%emt 0:00:28]} 18. Rad1 {[%emt 0:05:07]} Qc5 {[%emt 0:01:02]} 19. b4 {[%emt 0:00:27]} Qxc4 {[%emt 0:09:24]} 20. Bxh7+ {[%emt 0:00:59]} Kf8 {[%emt 0:00:19]} 21. Bd3 {[%emt 0:02:53]} Qc3 {[%emt 0:06:16]} 22. Bb5 {[%emt 0:03:32]} Qxf3 {[%emt 0:01:47]} 23. gxf3 {[%emt 0:00:05]} Ke7 {[%emt 0:00:31]} 24. Bxe8 {[%emt 0:00:06]} Kxe8 {[%emt 0:00:02]} 25. f4 {[%emt 0:03:23]} g6 {[%emt 0:00:02]} 26. Rd5 {[%emt 0:05:03]} Bd7 {[%emt 0:03:15]} 27. Rc5 {[%emt 0:00:57]} Kf8 {[%emt 0:06:09]} 28. Rec1 {[%emt 0:06:42]} Kg7 {[%emt 0:00:41]} 29. Ra5 {[%emt 0:01:03]} Rh8 {[%emt 0:01:02]} 30. b5 {[%emt 0:00:25]} b6 {[%emt 0:00:24]} 31. Rxa4 {[%emt 0:00:18]} Bxb5 {[%emt 0:00:06]} 32. Rb4 {[%emt 0:00:15]} Be2 {[%emt 0:00:56]} 33. Rc2 {[%emt 0:00:56]} Bf3 {[%emt 0:01:41]} 34. Rc3 {[%emt 0:00:01]} Bd5 {[%emt 0:00:36]} 35. Rxb6 {[%emt 0:00:19]} Rh4 {[%emt 0:00:59]} 36. Rb4 {[%emt 0:00:11]} Rh5 {[%emt 0:00:30]} 37. a4 {[%emt 0:00:45]} e5 {[%emt 0:00:12]} 38. Rb5 {[%emt 0:03:20]} exf4 {[%emt 0:00:40]} 39. h4 {[%emt 0:00:05]} Re5 {[%emt 0:00:37]} 40. Rc1 {[%emt 0:00:11]} f6 {[%emt 0:00:28]} 41. Rd1 {[%emt 0:00:39]} Bc6 {[%emt 0:00:32]} 42. Rxe5 {[%emt 0:00:05]} fxe5 {[%emt 0:00:04]} 43. a5 {[%emt 0:00:05]} Bf3 {[%emt 0:00:54]} 44. Rd6 {[%emt 0:00:33]} Kh6 {[%emt 0:00:33]} 45. a6 {[%emt 0:00:04]} Kh5 {[%emt 0:00:24]} 46. a7 {[%emt 0:00:03]} 1-0